fUSD/lending_fUSD_20250602
["ID","MTS","AMOUNT","RATE_DAILY","PERIOD"]
[363719823,1748843445531,-420.0,0.00019178,2]
[363719824,1748843445541,-521.34659197,0.00019178,2]
[363719825,1748843445551,-420.0,0.00019178,2]
[363719826,1748843445561,-420.0,0.00019178,2]
[363719827,1748843445571,-420.0,0.00019178,2]
[363719828,1748843445580,-420.0,0.00019178,2]
[363719829,1748843445589,-420.0,0.00019178,2]
[363719830,1748843445599,-420.0,0.00019178,2]
[363719831,1748843445608,-420.0,0.00019178,2]
[363719832,1748843445618,-420.0,0.00019178,2]
[363719833,1748843445627,-420.0,0.00019178,2]
[363719834,1748843445637,-420.0,0.00019178,2]
[363719835,1748843445647,-420.0,0.00019178,2]
[363719836,1748843445656,-420.0,0.00019178,2]
[363719837,1748843445666,-537.7783328,0.00019178,2]
[363719838,1748843445676,-420.0,0.00019178,2]
[363719840,1748843445685,-420.0,0.00019178,2]
[363719841,1748843445694,-420.0,0.00019178,2]
[363719842,1748843445703,-420.0,0.00019178,2]
[363719844,1748843445713,-420.0,0.00019178,2]
[363719846,1748843445723,-420.0,0.00019178,2]
[363719847,1748843445732,-420.0,0.00019178,2]
[363719848,1748843445742,-420.0,0.00019178,2]
[363719849,1748843445752,-420.0,0.00019178,2]
[363719850,1748843445761,-420.0,0.00019178,2]
[363719851,1748843445770,-420.0,0.00019178,2]
[363719852,1748843445780,-420.0,0.00019178,2]
[363719853,1748843445791,-420.0,0.00019178,2]
[363719854,1748843445800,-427.63155803,0.00019178,2]
[363719855,1748843445810,-533.61733309,0.00019178,2]
[363719856,1748843445820,-420.0,0.00019178,2]
[363719857,1748843445830,-429.97739593,0.00019178,2]
[363719858,1748843445840,-402.47059518,0.00019178,2]
[363719859,1748843445850,-420.0,0.00019178,2]
[363719860,1748843445859,-420.0,0.00019178,2]
[363719861,1748843445869,-378.07,0.00019178,2]
[363719862,1748843445879,-420.0,0.00019178,2]
[363719863,1748843445888,-420.0,0.00019178,2]
[363719864,1748843445898,-420.0,0.00019178,2]
[363719865,1748843445907,-424.04401939,0.00019178,2]
[363719866,1748843445917,-306.61,0.00019178,2]
[363719867,1748843445926,-420.0,0.00019178,2]
[363719868,1748843445936,-487.16018424,0.00019178,2]
[363719869,1748843445946,-1026.72,0.00019178,2]
[363719870,1748843445955,-420.0,0.00019178,2]
[363719871,1748843445965,-446.52122386,0.00019178,2]
[363719872,1748843445975,-424.27813042,0.00019178,2]
[363719873,1748843445984,-223.97282983,0.00019178,2]
[363719874,1748843445994,-420.0,0.00019178,2]
[363719875,1748843446004,-895.55,0.00019178,2]
[363719876,1748843446013,-420.0,0.00019178,2]
[363719877,1748843446023,-420.0,0.00019178,2]
[363719878,1748843446034,-420.0,0.00019178,2]
[363719879,1748843446044,-433.30206476,0.00019178,2]
[363719880,1748843446053,-422.54706099,0.00019178,2]
[363719881,1748843446062,-420.0,0.00019178,2]
[363719882,1748843446072,-420.0,0.00019178,2]
[363719883,1748843446082,-420.0,0.00019178,2]
[363719884,1748843446093,-420.0,0.00019178,2]
[363719885,1748843446103,-420.0,0.00019178,2]
[363719886,1748843446114,-524.75826055,0.00019178,2]
[363719887,1748843446125,-420.0,0.00019178,2]
[363719888,1748843446136,-420.0,0.00019178,2]
[363719889,1748843446147,-1638.44,0.00019178,2]
[363719890,1748843446156,-420.0,0.00019178,2]
[363719891,1748843446166,-558.59335119,0.00019178,2]
[363719892,1748843446176,-420.0,0.00019178,2]
[363719893,1748843446185,-420.0,0.00019178,2]
[363719894,1748843446194,-420.0,0.00019178,2]
[363719895,1748843446207,-420.0,0.00019178,2]
[363719896,1748843446217,-544.04,0.00019178,2]
[363719897,1748843446226,-420.0,0.00019178,2]
[363719898,1748843446235,-420.0,0.00019178,2]
[363719899,1748843446245,-420.0,0.00019178,2]
[363719900,1748843446255,-420.0,0.00019178,2]
[363719901,1748843446264,-420.0,0.00019178,2]
[363719902,1748843446274,-420.0,0.00019178,2]
[363719903,1748843446284,-420.0,0.00019178,2]
[363719904,1748843446294,-420.0,0.00019178,2]
[363719905,1748843446303,-483.61,0.00019178,2]
[363719906,1748843446313,-429.72974411,0.00019178,2]
[363719907,1748843446322,-490.7,0.00019178,2]
[363719908,1748843446332,-385.43,0.00019178,2]
[363719909,1748843446342,-420.0,0.00019178,2]
[363719910,1748843446351,-977.25,0.00019178,2]
[363719911,1748843446360,-490.02677065,0.00019178,2]
[363719912,1748843446370,-420.0,0.00019178,2]
[363719913,1748843446379,-448.43,0.00019178,2]
[363719914,1748843446389,-303.46,0.00019178,2]
[363719915,1748843446399,-313.96971276,0.00019178,2]
[363719916,1748843446408,-375.3,0.00019178,2]
[363719918,1748843446417,-420.0,0.00019178,2]
[363719920,1748843446426,-352.25484167,0.00019178,2]
[363719921,1748843446436,-420.0,0.00019178,2]
[363719922,1748843446445,-440.94229617,0.00019178,2]
[363719923,1748843446454,-389.1134582,0.00019178,2]
[363719924,1748843446463,-420.0,0.00019178,2]
[363719925,1748843446473,-471.07,0.00019178,2]
[363719926,1748843446483,-239.07230509,0.00019178,2]
[363719927,1748843446492,-420.0,0.00019178,2]
[363719928,1748843446501,-420.0,0.00019178,2]
[363719929,1748843446511,-151.0,0.00019178,2]
[363719930,1748843446520,-319.5,0.00019198,2]
[363719931,1748843446529,-500.0,0.00019205,2]
[363719932,1748843446539,-150.0,0.00019205,2]
[363719933,1748843446548,-162.9818829,0.00019215,2]
[363719934,1748843446558,-16634.30395477,0.00019217,2]
[363719935,1748843446567,-522.41723074,0.00019232,2]
[363719936,1748843446576,-150.0,0.00019232,2]
[363719937,1748843446585,-150.0,0.0001926,2]
[363719938,1748843446594,-251.14009166,0.00019287,2]
[363719939,1748843446603,-195.571043,0.00019314,2]
[363719940,1748843446659,-195.571043,0.00019314,2]
[363719941,1748843446668,-500.0,0.00019314,2]
[363719942,1748843446678,-500.0,0.00019314,2]
[363719943,1748843446687,-535.418581,0.00019315,2]
[363719944,1748843446696,-535.418581,0.00019315,2]
[363719945,1748843446705,-535.418581,0.00019315,2]
[363719946,1748843446715,-535.418581,0.00019315,2]
[363719947,1748843446724,-151.0,0.00019315,2]
[363719948,1748843446734,-151.550716,0.00019315,2]
[363719949,1748843446743,-151.0,0.00019315,2]
[363719950,1748843446752,-255.170628,0.00019315,2]
[363719951,1748843446761,-195.571043,0.00019315,2]
[363719952,1748843446771,-195.571043,0.00019315,2]
[363719953,1748843446780,-959.01946,0.00019315,2]
[363719954,1748843446789,-959.01946,0.00019315,2]
[363719955,1748843446798,-151.0,0.00019315,2]
[363719956,1748843446807,-151.0,0.00019315,2]
[363719957,1748843446816,-151.0,0.00019315,2]
[363719958,1748843446825,-151.0,0.00019315,2]
[363719959,1748843446834,-151.0,0.00019315,2]
[363719960,1748843446843,-151.0,0.00019315,2]
[363719961,1748843446851,-420.0,0.00019315,2]
[363719962,1748843446860,-311.21,0.00019315,2]
[363719963,1748843446869,-420.0,0.00019315,2]
[363719964,1748843446879,-367.24,0.00019315,2]
[363719965,1748843446890,-420.0,0.00019315,2]
[363719966,1748843446901,-402.33,0.00019315,2]
[363719967,1748843446912,-420.0,0.00019315,2]
[363719968,1748843446924,-465.14,0.00019315,2]
[363719969,1748843446936,-420.0,0.00019315,2]
[363719970,1748843446945,-420.0,0.00019315,2]
[363719971,1748843446955,-420.0,0.00019315,2]
[363719972,1748843446967,-420.0,0.00019315,2]
[363719973,1748843446977,-435.07,0.00019315,2]
[363719974,1748843446987,-157.35,0.00019315,2]
[363719975,1748843446996,-420.0,0.00019315,2]
[363719976,1748843447006,-420.0,0.00019315,2]
[363719977,1748843447017,-420.0,0.00019315,2]
[363719978,1748843447025,-420.0,0.00019315,2]
[363719979,1748843447035,-420.0,0.00019315,2]
[363719980,1748843447044,-375.9,0.00019315,2]
[363719981,1748843447053,-297.8761688,0.00019315,2]
[363719982,1748843447063,-420.0,0.00019315,2]
[363719983,1748843447072,-328.54753254,0.00019315,2]
[363719984,1748843447083,-420.0,0.00019315,2]
[363719985,1748843447092,-420.0,0.00019315,2]
[363719986,1748843447101,-420.0,0.00019315,2]
[363719987,1748843447110,-185.25455478,0.00019315,2]
[363719988,1748843447119,-454.25,0.00019315,2]
[363719989,1748843447129,-210.07,0.00019315,2]
[363719990,1748843447138,-385.98,0.00019315,2]
[363719991,1748843447147,-420.0,0.00019315,2]
[363719992,1748843447156,-449.99,0.00019315,2]
[363719993,1748843447165,-425.84657177,0.00019315,2]
[363719994,1748843447174,-229.35,0.00019315,2]
[363719995,1748843447184,-420.0,0.00019315,2]
[363719996,1748843447193,-420.0,0.00019315,2]
[363719997,1748843447202,-292.87,0.00019315,2]
[363719998,1748843447211,-490.61592709,0.00019315,2]
[363719999,1748843447219,-420.0,0.00019315,2]
[363720000,1748843447229,-420.0,0.00019315,2]
[363720001,1748843447239,-420.0,0.00019315,2]
[363720002,1748843447249,-420.0,0.00019315,2]
[363720003,1748843447259,-420.0,0.00019315,2]
[363720004,1748843447268,-420.0,0.00019315,2]
[363720005,1748843447277,-424.3869953,0.00019315,2]
[363720006,1748843447286,-500.13279658,0.00019315,2]
[363720007,1748843447295,-490.23619975,0.00019315,2]
[363720008,1748843447305,-420.0,0.00019315,2]
[363720009,1748843447315,-312.28661881,0.00019315,2]
[363720010,1748843447324,-420.0,0.00019315,2]
[363720011,1748843447334,-163.18082702,0.00019315,2]
[363720012,1748843447344,-281.4640777,0.00019315,2]
[363720013,1748843447353,-420.0,0.00019315,2]
[363720014,1748843447362,-459.46731375,0.00019315,2]
[363720015,1748843447371,-420.0,0.00019315,2]
[363720016,1748843447381,-420.0,0.00019315,2]
[363720017,1748843447390,-458.57594626,0.00019315,2]
[363720018,1748843447399,-289.81411684,0.00019315,2]
[363720019,1748843447409,-210.24955835,0.00019315,2]
[363720020,1748843447418,-151.52190186,0.00019315,2]
[363720021,1748843447427,-357.05992783,0.00019315,2]
[363720022,1748843447437,-670.15,0.00019315,2]
[363720023,1748843447447,-741.08,0.00019315,2]
[363720024,1748843447456,-420.0,0.00019315,2]
[363720025,1748843447465,-420.0,0.00019315,2]
[363720026,1748843447475,-306.67,0.00019315,2]
[363720027,1748843447484,-572.71,0.00019315,2]
[363720028,1748843447494,-420.0,0.00019315,2]
[363720029,1748843447503,-296.82432281,0.00019315,2]
[363720030,1748843447512,-242.88516111,0.00019315,2]
[363720031,1748843447522,-975.27,0.00019315,2]
[363720032,1748843447531,-420.0,0.00019315,2]
[363720033,1748843447540,-399.62918961,0.00019315,2]
[363720034,1748843447549,-420.0,0.00019315,2]
[363720035,1748843447558,-257.91035816,0.00019315,2]
[363720036,1748843447567,-637.55,0.00019315,2]
[363720037,1748843447576,-420.0,0.00019315,2]
[363720038,1748843447585,-420.0,0.00019315,2]
[363720039,1748843447595,-480.94,0.00019315,2]
[363720040,1748843447604,-420.0,0.00019315,2]
[363720041,1748843447613,-442.92089909,0.00019315,2]
[363720042,1748843447622,-502.68,0.00019315,2]
[363720043,1748843447631,-559.83,0.00019315,2]
[363720044,1748843447640,-313.76,0.00019315,2]
[363720045,1748843447649,-291.68148293,0.00019315,2]
[363720046,1748843447658,-420.0,0.00019315,2]
[363720047,1748843447667,-420.0,0.00019315,2]
[363720048,1748843447676,-420.0,0.00019315,2]
[363720049,1748843447685,-263.79626277,0.00019315,2]
[363720050,1748843447694,-599.16,0.00019315,2]
[363720051,1748843447703,-362.36,0.00019315,2]
[363720052,1748843447712,-420.0,0.00019315,2]
[363720053,1748843447721,-4165.14,0.00019315,2]
[363720054,1748843447733,-420.0,0.00019315,2]
[363720055,1748843447742,-420.0,0.00019315,2]
[363720056,1748843447752,-1682.6,0.00019315,2]
[363720057,1748843447762,-420.0,0.00019315,2]
[363720058,1748843447771,-420.0,0.00019315,2]
[363720059,1748843447780,-237.88,0.00019315,2]
[363720060,1748843447789,-420.0,0.00019315,2]
[363720061,1748843447798,-420.0,0.00019315,2]
[363720062,1748843447806,-420.0,0.00019315,2]
[363720063,1748843447817,-440.78,0.00019315,2]
[363720064,1748843447826,-420.0,0.00019315,2]
[363720065,1748843447835,-420.0,0.00019315,2]
[363720066,1748843447845,-420.0,0.00019315,2]
[363720067,1748843447856,-157.45,0.00019315,2]
[363720068,1748843447865,-541.1,0.00019315,2]
[363720069,1748843447874,-420.0,0.00019315,2]
[363720070,1748843447884,-420.0,0.00019315,2]
[363720071,1748843447893,-420.0,0.00019315,2]
[363720072,1748843447902,-476.04,0.00019315,2]
[363720073,1748843447912,-370.59,0.00019315,2]
[363720074,1748843447926,-522.92,0.00019315,2]
[363720075,1748843447937,-175.80742408,0.00019315,2]
[363720076,1748843447948,-420.0,0.00019315,2]
[363720077,1748843447959,-501.42,0.00019315,2]
[363720078,1748843447969,-420.0,0.00019315,2]
[363720079,1748843447979,-420.0,0.00019315,2]
[363720080,1748843447990,-420.0,0.00019315,2]
[363720081,1748843448001,-420.0,0.00019315,2]
[363720082,1748843448011,-420.0,0.00019315,2]
[363720083,1748843448021,-255.48,0.00019315,2]
[363720084,1748843448031,-541.98138214,0.00019315,2]
[363720085,1748843448040,-420.0,0.00019315,2]
[363720086,1748843448049,-150.02,0.00019315,2]
[363720087,1748843448059,-420.0,0.00019315,2]
[363720088,1748843448068,-420.0,0.00019315,2]
[363720089,1748843448077,-150.48,0.00019315,2]
[363720090,1748843448087,-420.0,0.00019315,2]
[363720091,1748843448096,-445.41,0.00019315,2]
[363720092,1748843448106,-1367.94,0.00019315,2]
[363720093,1748843448116,-420.0,0.00019315,2]
[363720094,1748843448125,-3107.77,0.00019315,2]
[363720095,1748843448134,-420.0,0.00019315,2]
[363720096,1748843448144,-420.0,0.00019315,2]
[363720097,1748843448154,-420.0,0.00019315,2]
[363720098,1748843448163,-420.0,0.00019315,2]
[363720099,1748843448172,-420.0,0.00019315,2]
[363720100,1748843448182,-296.08842008,0.00019315,2]
[363720101,1748843448192,-877.77,0.00019315,2]
[363720102,1748843448202,-420.0,0.00019315,2]
[363720103,1748843448211,-420.0,0.00019315,2]
[363720104,1748843448221,-490.09520385,0.00019315,2]
[363720105,1748843448230,-420.0,0.00019315,2]
[363720106,1748843448240,-420.0,0.00019315,2]
[363720107,1748843448252,-420.0,0.00019315,2]
[363720108,1748843448261,-420.0,0.00019315,2]
[363720109,1748843448271,-420.0,0.00019315,2]
[363720110,1748843448280,-420.0,0.00019315,2]
[363720111,1748843448288,-420.0,0.00019315,2]
[363720112,1748843448296,-420.0,0.00019315,2]
[363720113,1748843448305,-420.0,0.00019315,2]
[363720114,1748843448314,-420.0,0.00019315,2]
[363720115,1748843448321,-420.0,0.00019315,2]
[363720116,1748843448330,-420.0,0.00019315,2]
[363720117,1748843448337,-420.0,0.00019315,2]
[363720118,1748843448345,-420.0,0.00019315,2]
[363720119,1748843448354,-420.0,0.00019315,2]
[363720120,1748843448362,-420.0,0.00019315,2]
[363720121,1748843448370,-420.0,0.00019315,2]
[363720122,1748843448378,-420.0,0.00019315,2]
[363720123,1748843448388,-420.0,0.00019315,2]
[363720124,1748843448396,-420.0,0.00019315,2]
[363720125,1748843448404,-420.0,0.00019315,2]
[363720126,1748843448413,-427.23,0.00019315,2]
[363720127,1748843448421,-420.0,0.00019315,2]
[363720128,1748843448429,-420.0,0.00019315,2]
[363720129,1748843448436,-420.0,0.00019315,2]
[363720130,1748843448443,-168.22725981,0.00019315,2]
[363720131,1748843448450,-420.0,0.00019315,2]
[363720132,1748843448459,-420.0,0.00019315,2]
[363720133,1748843448466,-420.0,0.00019315,2]
[363720134,1748843448474,-1026.72,0.00019315,2]
[363720135,1748843448480,-895.55,0.00019315,2]
[363720136,1748843448487,-420.0,0.00019315,2]
[363720137,1748843448498,-420.0,0.00019315,2]
[363720138,1748843448507,-420.0,0.00019315,2]
[363720139,1748843448516,-420.0,0.00019315,2]
[363720140,1748843448526,-420.0,0.00019315,2]
[363720141,1748843448535,-512.1,0.00019315,2]
[363720142,1748843448544,-420.0,0.00019315,2]
[363720143,1748843448554,-420.0,0.00019315,2]
[363720144,1748843448563,-471.6,0.00019315,2]
[363720145,1748843448573,-420.0,0.00019315,2]
[363720146,1748843448582,-1638.44,0.00019315,2]
[363720147,1748843448591,-420.0,0.00019315,2]
[363720148,1748843448600,-428.1,0.00019315,2]
[363720149,1748843448609,-420.0,0.00019315,2]
[363720150,1748843448618,-423.99684182,0.00019315,2]
[363720151,1748843448627,-420.0,0.00019315,2]
[363720152,1748843448637,-420.0,0.00019315,2]
[363720153,1748843448646,-420.0,0.00019315,2]
[363720154,1748843448655,-420.0,0.00019315,2]
[363720155,1748843448665,-420.0,0.00019315,2]
[363720156,1748843448674,-420.0,0.00019315,2]
[363720157,1748843448683,-483.61,0.00019315,2]
[363720158,1748843448692,-420.0,0.00019315,2]
[363720159,1748843448701,-977.25,0.00019315,2]
[363720160,1748843448711,-448.43,0.00019315,2]
[363720161,1748843448720,-241.06990855,0.00019315,2]
[363720162,1748843448730,-263.74,0.00019315,2]
[363720163,1748843448739,-420.0,0.00019315,2]
[363720164,1748843448749,-471.07,0.00019315,2]
[363720165,1748843448759,-195.571043,0.00019352,2]
[363720166,1748843448768,-195.571043,0.00019352,2]
[363720167,1748843448777,-959.01946,0.00019352,2]
[363720168,1748843448786,-959.01946,0.00019352,2]
[363720169,1748843448796,-269.8125774,0.000194,2]
[363720170,1748843448805,-495.01,0.00019451,2]
[363720171,1748843448814,-535.418581,0.00019452,2]
[363720172,1748843448823,-535.418581,0.00019452,2]
[363720173,1748843448832,-195.571043,0.00019452,2]
[363720174,1748843448841,-195.571043,0.00019452,2]
[363720175,1748843448850,-959.01946,0.00019452,2]
[363720176,1748843448859,-959.01946,0.00019452,2]
[363720177,1748843448869,-151.0,0.00019452,2]
[363720178,1748843448878,-151.0,0.00019452,2]
[363720179,1748843448887,-151.0,0.00019452,2]
[363720180,1748843448896,-420.0,0.00019452,2]
[363720181,1748843448906,-420.0,0.00019452,2]
[363720182,1748843448919,-420.0,0.00019452,2]
[363720183,1748843448928,-339.34,0.00019452,2]
[363720184,1748843448938,-420.0,0.00019452,2]
[363720185,1748843448947,-420.0,0.00019452,2]
[363720186,1748843448956,-392.63734316,0.00019452,2]
[363720187,1748843448966,-420.0,0.00019452,2]
[363720188,1748843448976,-420.0,0.00019452,2]
[363720189,1748843448985,-420.0,0.00019452,2]
[363720190,1748843448995,-420.0,0.00019452,2]
[363720191,1748843449005,-420.0,0.00019452,2]
[363720192,1748843449014,-420.0,0.00019452,2]
[363720193,1748843449023,-413.09874485,0.00019452,2]
[363720194,1748843449033,-420.0,0.00019452,2]
[363720195,1748843449042,-420.0,0.00019452,2]
[363720196,1748843449051,-366.34874074,0.00019452,2]
[363720197,1748843449061,-420.0,0.00019452,2]
[363720198,1748843449070,-257.99845113,0.00019452,2]
[363720199,1748843449080,-420.0,0.00019452,2]
[363720200,1748843449089,-174.3044577,0.00019452,2]
[363720201,1748843449099,-420.0,0.00019452,2]
[363720202,1748843449108,-420.0,0.00019452,2]
[363720203,1748843449117,-420.0,0.00019452,2]
[363720204,1748843449127,-265.51361561,0.00019452,2]
[363720205,1748843449136,-526.69,0.00019452,2]
[363720206,1748843449145,-420.0,0.00019452,2]
[363720207,1748843449154,-420.0,0.00019452,2]
[363720208,1748843449164,-420.0,0.00019452,2]
[363720209,1748843449173,-670.15,0.00019452,2]
[363720210,1748843449183,-741.08,0.00019452,2]
[363720211,1748843449193,-291.79556428,0.00019452,2]
[363720212,1748843449202,-420.0,0.00019452,2]
[363720213,1748843449212,-572.71,0.00019452,2]
[363720214,1748843449221,-547.49974348,0.00019452,2]
[363720215,1748843449231,-975.27,0.00019452,2]
[363720216,1748843449241,-420.0,0.00019452,2]
[363720217,1748843449253,-420.0,0.00019452,2]
[363720218,1748843449263,-637.55,0.00019452,2]
[363720219,1748843449273,-420.0,0.00019452,2]
[363720220,1748843449283,-420.0,0.00019452,2]
[363720221,1748843449292,-480.94,0.00019452,2]
[363720222,1748843449302,-508.4,0.00019452,2]
[363720223,1748843449311,-502.68,0.00019452,2]
[363720224,1748843449321,-196.93843411,0.00019452,2]
[363720225,1748843449331,-478.89978989,0.00019452,2]
[363720226,1748843449340,-420.0,0.00019452,2]
[363720227,1748843449350,-599.16,0.00019452,2]
[363720228,1748843449360,-192.0448451,0.00019452,2]
[363720229,1748843449371,-4165.14,0.00019452,2]
[363720230,1748843449381,-420.0,0.00019452,2]
[363720231,1748843449391,-420.0,0.00019452,2]
[363720232,1748843449401,-1682.6,0.00019452,2]
[363720233,1748843449411,-365.17,0.00019452,2]
[363720234,1748843449421,-420.0,0.00019452,2]
[363720235,1748843449431,-533.99,0.00019452,2]
[363720236,1748843449441,-420.0,0.00019452,2]
[363720237,1748843449451,-420.0,0.00019452,2]
[363720238,1748843449461,-440.78,0.00019452,2]
[363720239,1748843449471,-420.0,0.00019452,2]
[363720240,1748843449481,-420.0,0.00019452,2]
[363720241,1748843449491,-420.0,0.00019452,2]
[363720242,1748843449502,-541.1,0.00019452,2]
[363720243,1748843449512,-241.14593118,0.00019452,2]
[363720244,1748843449522,-420.0,0.00019452,2]
[363720245,1748843449532,-420.0,0.00019452,2]
[363720246,1748843449542,-420.0,0.00019452,2]
[363720247,1748843449552,-501.42,0.00019452,2]
[363720248,1748843449562,-251.28681627,0.00019452,2]
[363720249,1748843449572,-420.0,0.00019452,2]
[363720250,1748843449582,-155.74,0.00019452,2]
[363720251,1748843449593,-420.0,0.00019452,2]
[363720252,1748843449603,-420.0,0.00019452,2]
[363720253,1748843449613,-420.0,0.00019452,2]
[363720254,1748843449623,-442.0625276,0.00019452,2]
[363720255,1748843449633,-420.0,0.00019452,2]
[363720256,1748843449643,-410.46810516,0.00019452,2]
[363720257,1748843449652,-445.41,0.00019452,2]
[363720258,1748843449662,-1367.94,0.00019452,2]
[363720259,1748843449672,-326.07,0.00019452,2]
[363720260,1748843449681,-3107.77,0.00019452,2]
[363720261,1748843449691,-420.0,0.00019452,2]
[363720262,1748843449701,-420.0,0.00019452,2]
[363720263,1748843449711,-420.0,0.00019452,2]
[363720264,1748843449721,-420.0,0.00019452,2]
[363720265,1748843449731,-420.0,0.00019452,2]
[363720266,1748843449742,-877.77,0.00019452,2]
[363720267,1748843449753,-420.0,0.00019452,2]
[363720268,1748843449763,-420.0,0.00019452,2]
[363720269,1748843449774,-420.0,0.00019452,2]
[363720270,1748843449784,-420.0,0.00019452,2]
[363720271,1748843449794,-420.0,0.00019452,2]
[363720272,1748843449803,-420.0,0.00019452,2]
[363720273,1748843449814,-420.0,0.00019452,2]
[363720274,1748843449823,-255.43993969,0.00019452,2]
[363720275,1748843449832,-420.0,0.00019452,2]
[363720276,1748843449842,-420.0,0.00019452,2]
[363720277,1748843449851,-189.84,0.00019452,2]
[363720278,1748843449861,-193.34,0.00019452,2]
[363720279,1748843449870,-420.0,0.00019452,2]
[363720280,1748843449880,-420.0,0.00019452,2]
[363720281,1748843449890,-420.0,0.00019452,2]
[363720282,1748843449899,-420.0,0.00019452,2]
[363720283,1748843449909,-520.97,0.00019452,2]
[363720284,1748843449922,-420.0,0.00019452,2]
[363720285,1748843449931,-254.06,0.00019452,2]
[363720286,1748843449941,-420.0,0.00019452,2]
[363720287,1748843449950,-420.0,0.00019452,2]
[363720288,1748843449959,-420.0,0.00019452,2]
[363720289,1748843449969,-420.0,0.00019452,2]
[363720290,1748843449979,-450.58783089,0.00019452,2]
[363720291,1748843449988,-420.0,0.00019452,2]
[363720292,1748843449999,-420.0,0.00019452,2]
[363720293,1748843450008,-420.0,0.00019452,2]
[363720294,1748843450018,-420.0,0.00019452,2]
[363720295,1748843450028,-1026.72,0.00019452,2]
[363720296,1748843450039,-895.55,0.00019452,2]
[363720297,1748843450051,-420.0,0.00019452,2]
[363720298,1748843450060,-420.0,0.00019452,2]
[363720299,1748843450070,-420.0,0.00019452,2]
[363720300,1748843450079,-420.0,0.00019452,2]
[363720301,1748843450089,-568.72082887,0.00019452,2]
[363720302,1748843450099,-370.38,0.00019452,2]
[363720303,1748843450108,-420.0,0.00019452,2]
[363720304,1748843450118,-420.0,0.00019452,2]
[363720305,1748843450128,-1638.44,0.00019452,2]
[363720306,1748843450137,-420.0,0.00019452,2]
[363720307,1748843450147,-420.0,0.00019452,2]
[363720308,1748843450156,-420.0,0.00019452,2]
[363720309,1748843450166,-420.0,0.00019452,2]
[363720310,1748843450175,-227.44,0.00019452,2]
[363720311,1748843450185,-420.0,0.00019452,2]
[363720312,1748843450195,-420.0,0.00019452,2]
[363720313,1748843450204,-420.0,0.00019452,2]
[363720314,1748843450214,-483.61,0.00019452,2]
[363720315,1748843450224,-215.79,0.00019452,2]
[363720316,1748843450234,-977.25,0.00019452,2]
[363720317,1748843450244,-448.43,0.00019452,2]
[363720318,1748843450254,-420.0,0.00019452,2]
[363720319,1748843450264,-471.07,0.00019452,2]
[363720320,1748843450274,-2815.59761448,0.00019465,2]
[363720321,1748843450283,-500.0,0.00019487,2]
[363720322,1748843450293,-500.0,0.00019487,2]
[363720323,1748843450302,-203205.5412,0.00019488,2]
[363720324,1748843450312,-150.51,0.000195,2]
[363720325,1748843450322,-1613.98,0.000195,2]
[363720326,1748843450332,-806.99,0.000195,2]
[363720327,1748843450342,-806.99,0.000195,2]